bitfinex/quotes_SOLUSD_20241013
["timestamp","ask_amount","ask_price","bid_price","bid_amount"]
[1728843344863,6.8804,145.34,145.31,1.37620656]
[1728843345062,6.8804,145.34,145.3,6.8822]
[1728843346265,6.881,145.33,145.29,6.8827]
[1728843347100,23.776884,145.36,145.27,6.1209]
[1728843347289,6.8823,145.3,145.25,24.0955]
[1728843347582,17.2004,145.35,145.25,24.0955]
[1728843347768,6.8827,145.29,145.25,17.2113]
[1728843348857,6.8827,145.29,145.25,24.0959]
[1728843351470,58.174584,145.36,145.23,39.47029033]
[1728843351678,6.8832,145.28,145.24,6.885]
[1728843353888,6.8829,145.29,145.24,6.885]
[1728843356575,1.19812052,145.3,145.25,19.36949307]
[1728843356773,6.8813,145.32,145.27,6.8833]
[1728843356974,6.8813,145.32,145.27,24.87609033]
[1728843357286,6.8813,145.32,145.27,26.25253891]
[1728843358083,6.8813,145.32,145.28,6.8832]
[1728843358285,1.19790686,145.34,145.29,19.3691897]
[1728843358471,8.07830686,145.34,145.3,6.8821]
[1728843360689,6.8815,145.32,145.27,24.87629033]
[1728843360988,6.8815,145.32,145.28,6.8832]
[1728843361778,30.657784,145.33,145.29,17.99279033]
[1728843363502,6.8821,145.31,145.27,42.08519033]
[1728843363683,6.8827,145.3,145.25,17.99279033]
[1728843363874,23.776884,145.33,145.26,6.8837]
[1728843364079,6.8819,145.31,145.26,6.8837]
[1728843364489,23.776884,145.33,145.25,24.87739033]
[1728843364697,6.8828,145.29,145.25,24.87739033]
[1728843364998,23.776884,145.33,145.25,24.87739033]
[1728843365200,6.8826,145.3,145.25,24.87739033]
[1728843365585,6.8826,145.3,145.25,17.99279033]
[1728843365889,6.8826,145.3,145.26,6.884]
[1728843366095,6.8819,145.31,145.26,6.884]
[1728843366599,23.776884,145.3,145.26,6.884]
[1728843368593,30.659284,145.3,145.25,24.87729033]
[1728843368800,6.8828,145.29,145.25,24.87729033]
[1728843369183,23.776884,145.3,145.25,24.87729033]
[1728843369385,30.659284,145.3,145.25,17.99279033]
[1728843369579,30.659284,145.3,145.26,6.884]
[1728843369780,23.776884,145.3,145.26,6.884]
[1728843370194,30.659284,145.3,145.26,6.884]
[1728843371201,23.776884,145.3,145.26,6.884]
[1728843371393,30.659284,145.3,145.26,6.884]
[1728843371772,30.659284,145.3,145.29,11.48208497]
[1728843372204,23.776884,145.3,145.29,11.48208497]
[1728843375600,6.8813,145.32,145.29,11.48208497]
[1728843375772,6.8813,145.32,145.31,11.48208497]
[1728843376176,30.658184,145.32,145.31,11.48208497]
[1728843376590,23.776884,145.32,145.31,11.48208497]
[1728843379607,1.19790686,145.34,145.31,18.36348497]
[1728843379917,1.19790686,145.34,145.33,11.48208497]
[1728843382683,1.19790686,145.34,145.33,18.36288497]
[1728843382882,1.19790686,145.34,145.33,11.48208497]
[1728843384714,8.07840686,145.34,145.3,6.8822]
[1728843384912,8.07840686,145.34,145.31,11.48208497]
[1728843385113,6.8809,145.33,145.29,24.0889]
[1728843385294,6.8809,145.33,145.3,11.48208497]
[1728843385808,8.07840686,145.34,145.31,11.48208497]
[1728843386396,8.07840686,145.34,145.32,11.48208497]
[1728843386907,8.07840686,145.34,145.31,11.48208497]
[1728843391919,1.19790686,145.34,145.32,11.48208497]
[1728843392809,1.19790686,145.34,145.33,11.48208497]
[1728843395935,1.19790686,145.34,145.33,18.36288497]
[1728843396711,1.19790686,145.34,145.33,11.48208497]
[1728843397532,1.19790686,145.34,145.33,18.36288497]
[1728843398936,1.19790686,145.34,145.33,11.48208497]
[1728843406107,1.19790686,145.34,145.33,18.36288497]
[1728843406338,6.8785,145.38,145.33,18.36288497]
[1728843406543,6.8785,145.38,145.34,11.48208497]
[1728843407219,6.8785,145.38,145.33,18.36288497]
[1728843408537,6.879,145.37,145.33,18.36288497]
[1728843408744,6.8796,145.36,145.32,18.36328497]
[1728843412127,6.8796,145.36,145.33,11.48208497]
[1728843412320,17.43353222,145.39,145.33,11.48208497]
[1728843412321,30.655784,145.38,145.33,18.36278497]
[1728843412520,6.8791,145.37,145.33,18.36278497]
[1728843413636,6.8791,145.37,145.33,6.8807]
[1728843417037,17.43353222,145.39,145.34,11.48208497]
[1728843417217,6.8785,145.38,145.35,11.48208497]
[1728843417421,6.8785,145.38,145.34,18.36238497]
[1728843419638,24.31163222,145.39,145.34,11.48208497]
[1728843419823,6.8785,145.38,145.34,18.36228497]
[1728843420023,6.8785,145.38,145.34,6.8802]
[1728843420745,6.8785,145.38,145.33,28.68378497]
[1728843421044,6.879,145.37,145.33,35.56448497]
[1728843421252,6.879,145.37,145.33,24.0824]
[1728843422056,6.879,145.37,145.33,17.2017]
[1728843422256,17.43353222,145.39,145.35,11.48208497]
[1728843422462,24.31163222,145.39,145.35,18.36188497]
[1728843422646,24.31163222,145.39,145.35,6.8798]
[1728843422838,24.31163222,145.39,145.34,18.36238497]
[1728843423157,24.31163222,145.39,145.34,6.8803]
[1728843423349,24.31163222,145.39,145.35,6.8798]
[1728843426637,8.06913222,145.39,145.35,18.36188497]
[1728843428363,8.06913222,145.39,145.35,6.8798]
[1728843429153,8.06913222,145.39,145.35,18.36188497]
[1728843432667,1.19103222,145.39,145.36,11.48208497]
[1728843433170,1.19103222,145.39,145.38,18.36058497]
[1728843433356,23.4118,145.43,145.38,11.48208497]
[1728843433357,6.8769,145.42,145.38,11.48208497]
[1728843433547,6.8769,145.42,145.39,11.48208497]
[1728843434654,6.8769,145.42,145.38,18.36048497]
[1728843434854,23.776884,145.42,145.37,17.197]
[1728843435050,6.8776,145.4,145.37,17.197]
[1728843435948,6.8774,145.41,145.37,17.197]
[1728843436371,6.8774,145.41,145.37,28.67908497]
[1728843437567,23.776884,145.42,145.38,11.48208497]
[1728843437876,30.653584,145.42,145.38,6.8784]
[1728843439757,24.60222487,145.43,145.39,6.8778]
[1728843439952,17.72582487,145.43,145.39,8.25324738]
[1728843440358,1.19042487,145.43,145.39,19.73533235]
[1728843440664,1.19042487,145.43,145.39,12.85753235]
[1728843440859,1.19042487,145.43,145.4,18.35958497]
[1728843442247,1.19042487,145.43,145.42,6.8766]
[1728843442475,23.0273,145.46,145.42,6.8766]
[1728843442776,24.21813256,145.46,145.42,6.8766]
[1728843444087,6.8757,145.44,145.41,17.1924]
[1728843444375,6.8753,145.45,145.41,24.0693]
[1728843445480,1.19083256,145.46,145.43,6.8761]
[1728843445658,1.19083256,145.46,145.41,28.67448497]
[1728843445857,1.19083256,145.46,145.42,6.8765]
[1728843446265,1.19083256,145.46,145.42,8.25157699]
[1728843447355,1.19083256,145.46,145.43,6.8759]
[1728843449973,1.19083256,145.46,145.44,1.37495396]
[1728843450271,6.8734,145.49,145.44,8.25045396]
[1728843450588,1.18970674,145.47,145.44,8.25045396]
[1728843450969,1.18970674,145.47,145.44,1.37495396]
[1728843451284,1.18970674,145.47,145.45,6.8751]
[1728843451584,6.8734,145.49,145.45,6.8751]
[1728843451769,8.06305501,145.49,145.45,6.8751]
[1728843454174,30.650684,145.48,145.43,24.0657]
[1728843458478,6.8743,145.47,145.43,24.0657]
[1728843459594,23.776884,145.48,145.43,24.0657]
[1728843459898,30.650784,145.48,145.44,8.25044466]
[1728843460690,1.18965501,145.49,145.45,11.48208497]
[1728843460898,1.18965501,145.49,145.46,1.3747461]
[1728843461081,6.8732,145.5,145.46,8.2493551]
[1728843462816,1.18956026,145.51,145.48,6.8737]
[1728843463017,1.18956026,145.51,145.48,8.24828603]
[1728843463484,6.8719,145.52,145.48,8.24828603]
[1728843464009,6.8719,145.52,145.48,6.8737]
[1728843464210,1.18949173,145.53,145.47,17.1853]
[1728843464513,6.8724,145.51,145.47,24.0595]
[1728843465013,6.8724,145.51,145.48,1.3745838]
[1728843465184,6.8724,145.51,145.47,24.0595]
[1728843465701,6.8724,145.51,145.48,1.37458362]
[1728843466500,6.8724,145.51,145.47,24.0595]
[1728843467704,23.776884,145.52,145.44,17.1884]
[1728843467916,6.8743,145.47,145.43,6.876]
[1728843468084,23.776884,145.5,145.44,1.37494254]
[1728843468285,30.649784,145.5,145.45,6.8748]
[1728843468995,6.8727,145.51,145.46,6.8745]
[1728843470305,6.8729,145.5,145.46,6.8745]
[1728843473398,6.8733,145.49,145.45,24.0627]
[1728843474321,6.8742,145.48,145.43,6.8758]
[1728843474614,6.8742,145.48,145.44,6.8756]
[1728843475408,23.776884,145.52,145.45,1.37484737]
[1728843475596,6.8729,145.5,145.46,6.8746]
[1728843477200,6.8724,145.51,145.47,6.8742]
[1728843477585,6.8724,145.51,145.47,8.24882704]
[1728843477791,30.648884,145.52,145.47,19.73091201]
[1728843478119,8.06099173,145.53,145.49,6.8732]
[1728843478408,8.06099173,145.53,145.49,8.24765191]
[1728843478989,8.06099173,145.53,145.48,28.66618497]
[1728843479193,8.06099173,145.53,145.48,35.53988497]
[1728843479419,8.06099173,145.53,145.48,24.0578]
[1728843479621,23.776884,145.52,145.45,27.58678497]
[1728843479802,6.8724,145.51,145.47,6.8742]
[1728843480205,6.8724,145.51,145.48,1.37460218]
[1728843482503,6.8724,145.51,145.47,6.8742]
[1728843482715,6.8724,145.51,145.48,1.37460228]
[1728843483215,23.776884,145.52,145.41,22.5075]
[1728843483395,6.8741,145.48,145.42,28.67288497]
[1728843484017,6.8741,145.48,145.43,6.8758]
[1728843484307,6.8743,145.47,145.43,6.8758]
[1728843485518,6.8738,145.48,145.44,1.37493608]
[1728843485722,6.8738,145.48,145.44,8.25043608]
[1728843486596,23.776884,145.49,145.44,1.37493608]
[1728843486814,23.776884,145.49,145.44,28.67088497]
[1728843487015,1.19065154,145.5,145.45,11.48208497]
[1728843487223,1.19065154,145.5,145.47,11.48208497]
[1728843487519,1.19065154,145.5,145.46,18.56093739]
[1728843487520,17.1735,145.58,145.49,11.48208497]
[1728843487725,258.7,145.65,145.55,11.48208497]
[1728843487726,2.0247408,145.57,145.55,11.48208497]
[1728843487906,0.8351519,145.57,145.56,8.24383696]
[1728843489105,0.8351519,145.57,145.56,19.72592193]
[1728843489805,0.8351519,145.57,145.56,8.24383696]
[1728843493017,0.8351519,145.57,145.56,26.11611265]
[1728843493413,0.8351519,145.57,145.56,46.11611265]
[1728843493728,0.8351519,145.57,145.56,44.74227569]
[1728843496011,0.8351519,145.57,145.56,74.93765969]
[1728843496212,1.18981526,145.66,145.62,6.8669]
[1728843496510,1.18981526,145.66,145.61,17.1685]
[1728843496511,1.18959831,145.66,145.61,17.1685]
[1728843496716,6.8659,145.65,145.61,17.1685]
[1728843497220,1.18959831,145.66,145.61,24.036]
[1728843497536,23.776884,145.65,145.61,24.036]
[1728843497927,23.776884,145.65,145.62,1.37325657]
[1728843498230,8.05489831,145.66,145.62,1.37325657]
[1728843498413,1.18959831,145.66,145.62,6.8671]
[1728843498608,6.8652,145.67,145.62,6.8671]
[1728843498821,23.776884,145.66,145.61,17.1685]
[1728843499036,6.8653,145.66,145.61,24.036]
[1728843499627,6.8652,145.67,145.62,6.8671]
[1728843500826,1.18956864,145.68,145.62,6.8671]
[1728843501045,6.8653,145.66,145.62,6.8671]
[1728843502914,30.641684,145.67,145.62,6.8671]
[1728843504443,6.8648,145.67,145.61,17.1685]
[1728843504614,6.8648,145.67,145.62,6.8671]
[1728843505615,6.8658,145.65,145.61,24.036]
[1728843506625,6.8653,145.66,145.62,6.8671]
[1728843508326,1.18956864,145.68,145.62,6.8671]
[1728843508327,6.8649,145.67,145.62,6.8671]
[1728843508917,6.8649,145.67,145.61,17.1685]
[1728843509118,8.05396864,145.68,145.63,6.8666]
[1728843509317,8.05396864,145.68,145.64,8.23914572]
[1728843509517,8.05396864,145.68,145.64,6.8662]
[1728843510924,6.8649,145.67,145.63,6.8666]
[1728843511438,1.18956864,145.68,145.63,6.8666]
[1728843511439,8.05406864,145.68,145.63,6.8666]
[1728843511914,8.05406864,145.68,145.63,18.29523542]
[1728843512847,8.05406864,145.68,145.64,11.42863542]
[1728843515140,8.05406864,145.68,145.63,18.29523542]
[1728843518049,8.05406864,145.68,145.61,17.1685]
[1728843518050,23.776884,145.67,145.62,6.867]
[1728843519059,38.790684,145.67,145.59,6.8685]
[1728843519344,6.867,145.63,145.59,6.8685]
[1728843521230,6.8672,145.62,145.58,17.1721]
[1728843521647,6.8677,145.61,145.56,33.95183542]
[1728843521828,1.18986604,145.66,145.55,35.47453542]
[1728843521829,6.8686,145.59,145.55,35.47453542]
[1728843522135,6.8686,145.59,145.55,24.0459]
[1728843522338,6.8682,145.6,145.55,35.47453542]
[1728843522546,6.8682,145.6,145.56,19.67231811]
[1728843523034,6.8668,145.63,145.58,18.29723542]
[1728843523232,6.8668,145.63,145.59,1.37345044]
[1728843528561,6.8668,145.63,145.58,18.29723542]
[1728843529065,6.8668,145.63,145.59,1.37345326]
[1728843529647,6.8662,145.64,145.59,12.80208887]
[1728843529964,6.8662,145.64,145.6,6.868]
[1728843530165,6.8662,145.64,145.61,1.37334898]
[1728843530866,6.8662,145.64,145.6,6.868]
[1728843531370,6.8662,145.64,145.59,18.29713542]
[1728843532266,1.18986604,145.66,145.6,19.66989699]
[1728843532565,6.8658,145.65,145.61,18.29613542]
[1728843532768,6.8658,145.65,145.62,1.3732347]
[1728843533361,6.8658,145.65,145.61,6.8675]
[1728843533657,6.8658,145.65,145.6,18.29663542]
[1728843535059,6.8658,145.65,145.61,1.37323719]
[1728843535459,6.8658,145.65,145.61,6.8676]
[1728843536559,6.8658,145.65,145.61,18.29623542]
[1728843537465,6.8663,145.64,145.6,6.8679]
[1728843537658,6.867,145.63,145.59,24.0394]
[1728843537861,6.8675,145.62,145.58,6.8689]
[1728843539258,6.8675,145.62,145.59,1.37348657]
[1728843539774,24.96570117,145.65,145.58,18.29753542]
[1728843539978,6.8668,145.63,145.58,18.29753542]
[1728843540278,6.8668,145.63,145.59,1.37348212]
[1728843540477,6.8668,145.63,145.59,8.24198212]
[1728843540660,6.8668,145.63,145.59,19.67061754]
[1728843540855,24.96570117,145.65,145.6,11.42863542]
[1728843541060,6.8663,145.64,145.6,18.29663542]
[1728843543761,6.8663,145.64,145.61,1.37325853]
[1728843545101,24.96570117,145.65,145.58,24.0407]
[1728843545102,6.8668,145.63,145.58,24.0407]
[1728843545288,6.8675,145.62,145.58,35.46933542]
[1728843545589,6.8675,145.62,145.58,24.0407]
[1728843549587,24.96570117,145.65,145.56,18.29843542]
[1728843549588,6.8682,145.6,145.56,18.29843542]
[1728843549784,42.13040117,145.65,145.57,19.67177074]
[1728843549785,6.8677,145.61,145.57,19.67177074]
[1728843550290,6.8667,145.63,145.59,6.8685]
[1728843550502,6.8667,145.63,145.59,18.29713542]
[1728843554174,6.8673,145.62,145.58,6.8689]
[1728843555483,6.8668,145.63,145.58,6.8689]
[1728843555685,6.8668,145.63,145.59,19.67028903]
[1728843556480,24.96570117,145.65,145.59,19.67028903]
[1728843556690,1.18881717,145.65,145.6,11.42863542]
[1728843556897,23.776884,145.66,145.61,1.37321758]
[1728843557094,23.776884,145.66,145.61,12.801853]
[1728843557297,16.20226997,145.67,145.61,12.801853]
[1728843557493,23.06706997,145.67,145.62,11.42863542]
[1728843557682,21.8786,145.67,145.62,11.42863542]
[1728843558402,21.8786,145.67,145.63,6.8667]
[1728843558610,6.8648,145.67,145.63,6.8667]
[1728843562802,6.8648,145.67,145.63,18.29533542]
[1728843563580,6.8648,145.67,145.63,6.8667]
[1728843563993,6.8655,145.66,145.62,6.8671]
[1728843565126,1.18825508,145.68,145.58,16.2977]
[1728843565127,23.776884,145.67,145.58,16.2977]
[1728843565322,6.8658,145.65,145.6,6.8677]
[1728843565817,6.8663,145.64,145.6,6.8677]
[1728843566718,6.8663,145.64,145.61,1.37324805]
[1728843567293,6.8663,145.64,145.6,18.29633542]
[1728843567514,6.8663,145.64,145.61,1.37324831]
[1728843568213,6.8658,145.65,145.61,1.37324831]
[1728843568594,6.8658,145.65,145.61,19.66948373]
[1728843570712,23.776884,145.67,145.61,18.29623542]
[1728843570916,1.18825508,145.68,145.61,18.29623542]
[1728843570917,6.8654,145.66,145.62,6.867]
[1728843574524,1.18825508,145.68,145.63,19.66832221]
[1728843574525,6.8649,145.67,145.63,19.66832221]
[1728843574719,6.8649,145.67,145.63,18.29523542]
[1728843579849,8.05295508,145.68,145.63,18.29523542]
[1728843580224,1.18825508,145.68,145.64,11.42863542]
[1728843580538,8.05255508,145.68,145.65,12.80158231]
[1728843581409,8.05255508,145.68,145.65,11.42863542]
[1728843581648,8.05255508,145.68,145.64,18.29473542]
[1728843587337,8.05255508,145.68,145.64,19.66768335]
[1728843588026,8.05255508,145.68,145.64,18.29473542]
[1728843595620,6.8643,145.68,145.64,18.29473542]
[1728843598348,6.8654,145.66,145.63,17.1657]
[1728843598551,23.776884,145.7,145.63,17.1657]
[1728843598733,6.8653,145.66,145.63,17.1657]
[1728843598942,23.776884,145.7,145.65,11.42863542]
[1728843599121,6.8645,145.68,145.65,11.42863542]
[1728843602633,6.8645,145.68,145.64,6.866]
[1728843605240,6.8639,145.69,145.65,18.29423542]
[1728843605448,6.8639,145.69,145.66,11.42863542]
[1728843605959,1.1887293,145.71,145.68,11.42863542]
[1728843606250,0.8351519,145.72,145.7,11.42863542]
[1728843607448,7.6979519,145.72,145.7,11.42863542]
[1728843610151,7.6979519,145.72,145.69,11.42863542]
[1728843610352,7.6979519,145.72,145.68,18.29293542]
[1728843610553,7.6979519,145.72,145.68,6.8643]
[1728843611373,7.6979519,145.72,145.68,19.66557227]
[1728843612039,0.8351519,145.72,145.68,12.80127227]
[1728843612362,0.8351519,145.72,145.71,11.42863542]
[1728843615755,0.8351519,145.72,145.69,24.0231]
[1728843615942,0.8351519,145.72,145.69,35.45173542]
[1728843616146,0.8351519,145.72,145.7,1.37252588]
[1728843617746,0.8351519,145.72,145.7,12.8011613]
[1728843617946,0.8351519,145.72,145.7,19.6644613]
[1728843618562,0.8351519,145.72,145.71,18.29153542]
[1728843619074,0.8351519,145.72,145.71,6.8629]
[1728843619549,0.8351519,145.72,145.7,11.42863542]
[1728843619753,0.8351519,145.72,145.69,28.58793542]
[1728843619944,0.8351519,145.72,145.69,35.45163542]
[1728843622471,0.8351519,145.72,145.7,1.37246092]
[1728843623868,0.8351519,145.72,145.69,24.023]
[1728843624080,0.8351519,145.72,145.69,35.45163542]
[1728843624287,0.8351519,145.72,145.7,1.37252554]
[1728843624971,0.8351519,145.72,145.69,24.023]
[1728843627658,0.8351519,145.72,145.67,11.42863542]
[1728843627858,23.776884,145.71,145.66,17.1626]
[1728843628077,23.776884,145.71,145.67,1.37281953]
[1728843628275,23.776884,145.71,145.67,12.80145495]
[1728843628479,30.639784,145.71,145.67,18.29303542]
[1728843629284,7.6978519,145.72,145.68,18.29263542]
[1728843630664,7.6978519,145.72,145.68,6.864]
[1728843636382,0.8351519,145.72,145.69,6.8637]
[1728843636582,0.8351519,145.72,145.7,6.8633]
[1728843636784,0.8351519,145.72,145.71,11.42863542]
[1728843637083,0.8351519,145.72,145.7,19.66443477]
[1728843638992,0.8351519,145.72,145.71,11.42863542]
[1728843640194,0.8351519,145.72,145.7,8.23579935]
[1728843640195,0.8351519,145.72,145.7,18.29193542]
[1728843641183,0.8351519,145.72,145.68,35.45333542]
[1728843643272,0.8351519,145.72,145.69,6.8637]
[1728843644885,6.863,145.71,145.68,17.1605]
[1728843645185,23.776884,145.71,145.69,11.42863542]
[1728843645393,7.6976519,145.72,145.69,6.8638]
[1728843645394,0.8351519,145.72,145.69,6.8638]
[1728843646801,0.8351519,145.72,145.68,35.45333542]
[1728843647576,7.6976519,145.72,145.68,35.45333542]
[1728843651295,7.6976519,145.72,145.69,11.42863542]
[1728843651488,7.6976519,145.72,145.68,24.0247]
[1728843651695,7.6976519,145.72,145.69,11.42863542]
[1728843655996,7.6976519,145.72,145.68,24.0247]
[1728843656186,7.6976519,145.72,145.68,35.45333542]
[1728843657097,7.6976519,145.72,145.69,11.42863542]
[1728843657301,0.8351519,145.72,145.7,11.42863542]
[1728843657615,0.8351519,145.72,145.71,11.42863542]
[1728843660599,0.8351519,145.72,145.69,1.37264424]
[1728843660600,7.6976519,145.72,145.68,24.0248]
[1728843660798,7.6976519,145.72,145.68,35.45343542]
[1728843661604,0.8351519,145.72,145.68,35.45343542]
[1728843661808,0.8351519,145.72,145.71,11.42863542]
[1728843661988,0.8351519,145.72,145.7,11.42863542]
[1728843664306,0.8351519,145.72,145.71,11.42863542]
[1728843664490,0.8351519,145.72,145.7,11.42863542]
[1728843664687,0.8351519,145.72,145.71,11.42863542]
[1728843667091,0.8351519,145.72,145.71,19.66401239]
[1728843671095,0.8351519,145.72,145.71,18.29153542]
[1728843672213,7.6976519,145.72,145.67,17.1611]
[1728843672431,7.6976519,145.72,145.68,6.8643]
[1728843673507,7.6976519,145.72,145.67,35.45433542]
[1728843674594,30.639784,145.71,145.67,17.1611]
[1728843675024,23.776884,145.71,145.67,17.1611]
[1728843675223,6.8639,145.69,145.65,6.8656]
[1728843675395,6.8643,145.68,145.64,17.1648]
[1728843675796,6.8649,145.67,145.63,6.8666]
[1728843676912,23.776884,145.66,145.62,18.29573542]
[1728843677611,23.776884,145.66,145.56,15.1605]
[1728843677811,23.776884,145.66,145.58,28.60073542]
[1728843678227,23.776884,145.63,145.6,6.8679]
[1728843678425,23.776884,145.63,145.59,6.8685]
[1728843678640,23.776884,145.63,145.59,18.29713542]
[1728843678846,23.776884,145.63,145.59,6.8685]
[1728843679017,30.643584,145.63,145.58,35.46973542]
[1728843679637,23.776884,145.63,145.61,11.42863542]
[1728843679932,1.18948203,145.66,145.62,12.80206118]
[1728843680254,22.9189,145.69,145.65,18.29433542]
[1728843680438,22.9189,145.69,145.66,11.42863542]
[1728843680615,22.9189,145.69,145.65,11.42863542]
[1728843681222,6.8645,145.68,145.65,11.42863542]
[1728843681422,6.8645,145.68,145.64,18.29473542]
[1728843681836,16.055,145.69,145.59,23.6686]
[1728843682031,16.055,145.69,145.6,11.42863542]
[1728843682439,6.8661,145.65,145.6,18.29653542]
[1728843682739,6.8662,145.64,145.6,18.29653542]
[1728843683639,6.8668,145.63,145.59,24.0394]
[1728843683946,6.8668,145.63,145.59,17.171]
[1728843685833,6.8668,145.63,145.59,28.59963542]
[1728843686151,23.776884,145.63,145.6,1.37348909]
[1728843686755,23.776884,145.63,145.6,12.80212451]
[1728843687737,23.776884,145.63,145.6,12.80212385]
[1728843688436,6.8662,145.64,145.6,19.66992385]
[1728843688732,6.8662,145.64,145.6,18.29643542]
[1728843689146,23.776884,145.63,145.59,28.59963542]
[1728843689349,23.776884,145.63,145.59,24.0395]
[1728843689745,30.643684,145.63,145.59,24.0395]
[1728843690157,23.776884,145.63,145.59,36.84163313]
[1728843690353,23.776884,145.63,145.6,11.42863542]
[1728843691055,23.776884,145.63,145.6,18.29663542]
[1728843691242,23.776884,145.63,145.6,6.868]
[1728843691845,16.055,145.69,145.62,11.42863542]
[1728843692053,16.055,145.69,145.63,11.42863542]
[1728843693561,23.776884,145.66,145.63,18.29523542]
[1728843694657,23.776884,145.66,145.64,12.80185731]
[1728843694848,23.776884,145.67,145.64,19.66785731]
[1728843695057,23.776884,145.67,145.64,18.29463542]
[1728843695744,23.776884,145.67,145.64,11.42863542]
[1728843696548,23.776884,145.67,145.63,35.46133542]
[1728843697468,23.776884,145.66,145.63,35.46133542]
[1728843697651,23.776884,145.66,145.63,24.0327]
[1728843698566,6.8649,145.67,145.63,36.83448581]
[1728843699072,23.776884,145.66,145.63,36.83448581]
[1728843699472,23.776884,145.67,145.64,12.80174008]
[1728843699651,23.776884,145.67,145.64,11.42863542]
[1728843700948,23.776884,145.66,145.63,17.1662]
[1728843701158,30.642284,145.66,145.62,18.29563542]
[1728843705577,23.776884,145.64,145.61,8.2408264]
[1728843705874,1.18959123,145.68,145.61,19.66946182]
[1728843706175,23.776884,145.65,145.62,18.29573542]
[1728843709470,23.776884,145.65,145.62,6.8671]
[1728843709983,23.776884,145.65,145.63,11.42863542]
[1728843710577,6.8649,145.67,145.63,19.66819642]
[1728843710777,23.776884,145.67,145.64,18.29483542]
[1728843712175,23.776884,145.67,145.64,11.42863542]
[1728843714197,30.641684,145.67,145.64,11.42863542]
[1728843716482,30.641684,145.67,145.63,18.29513542]
[1728843717165,30.641684,145.67,145.63,19.66831445]
[1728843720173,6.8653,145.66,145.62,35.46303542]
[1728843720494,6.8653,145.66,145.63,1.37320052]
[1728843722005,30.641784,145.67,145.63,12.80183594]
[1728843723279,30.641784,145.67,145.63,19.66833594]
[1728843724776,23.776884,145.67,145.65,11.42863542]
[1728843724995,6.8635,145.7,145.66,11.42863542]
[1728843725176,6.8631,145.71,145.68,11.42863542]
[1728843725375,8.89232396,145.72,145.68,11.42863542]
[1728843725668,8.89232396,145.72,145.68,18.29283542]
[1728843725867,8.89232396,145.72,145.68,11.42863542]
[1728843727668,23.776884,145.71,145.68,11.42863542]
[1728843728473,23.776884,145.71,145.69,11.42863542]
[1728843728683,23.776884,145.71,145.69,12.80130239]
[1728843728904,2.02982396,145.72,145.69,12.80130239]
[1728843728905,2.02982396,145.72,145.7,11.42863542]
[1728843729114,0.8351519,145.72,145.71,11.42863542]
[1728843729316,0.8351519,145.72,145.71,19.66404614]
[1728843729615,0.8351519,145.72,145.71,18.29153542]
[1728843732517,0.8351519,145.72,145.71,11.42863542]
[1728843733406,0.8351519,145.72,145.7,18.29183542]
[1728843734621,0.8351519,145.72,145.68,17.1604]
[1728843734822,23.776884,145.71,145.68,17.1604]
[1728843735121,30.639784,145.71,145.68,17.1604]
[1728843735311,23.776884,145.71,145.68,17.1604]
[1728843735620,23.776884,145.71,145.68,28.58903542]
[1728843735824,23.776884,145.71,145.69,11.42863542]
[1728843736323,0.8351519,145.72,145.69,11.42863542]
[1728843736528,0.8351519,145.72,145.7,11.42863542]
[1728843737619,0.8351519,145.72,145.71,11.42863542]
[1728843746853,0.8351519,145.72,145.71,18.29153542]
[1728843747144,0.8351519,145.72,145.71,6.8629]
[1728843747322,0.8351519,145.72,145.71,18.29153542]
[1728843748130,0.8351519,145.72,145.71,12.80110551]
[1728843748317,0.8351519,145.72,145.71,19.66400551]
[1728843755245,0.8351519,145.72,145.71,18.29153542]
[1728843755751,0.8351519,145.72,145.71,19.66382192]
[1728843758546,0.8351519,145.72,145.71,18.29153542]
[1728843759961,0.8351519,145.72,145.71,19.6638306]
[1728843760643,0.8351519,145.72,145.71,18.29153542]
[1728843763358,0.8351519,145.72,145.71,19.66383272]
[1728843765157,6.8588,145.8,145.76,6.8604]
[1728843765457,6.8588,145.8,145.77,11.42863542]
[1728843765756,6.8588,145.8,145.76,12.80056033]
[1728843766154,6.8588,145.8,145.76,19.66106033]
[1728843766337,6.8588,145.8,145.76,19.66106029]
[1728843767357,6.8595,145.79,145.75,11.42863542]
[1728843767760,6.8597,145.78,145.74,35.44303542]